{"text_format":"1","workbook":"xlsx","n_sheets":9,"sheets":["Invoice","Sales Report","Customer Report","Product Report","Customer Statement","Sales Rep. Report","Payment Report","©","Office-Kit.com.System"],"not_rendered":{"charts":0,"images":5,"macros":1,"external_links":0,"defined_names":272,"comments":0,"pivot_tables":0},"unopened":[],"bounds":{"document_bytes":16777216,"sheet_cells":100000,"rows_first":2000,"rows_last":500,"rows_between":2000,"halvings":0,"cell_chars":16384,"cell_head_chars":4096},"cells_cut":0,"cells_raw":0,"read":"whole","date_system":"1900"}

{"sheet":"Invoice","index":0,"n_rows":985,"n_cols":998,"rows_kept":985,"cut":false,"hidden":false,"merged":[[15,11,15,12],[11,6,11,8],[12,6,12,8],[13,6,13,8],[11,11,11,12],[12,11,12,12],[13,11,13,12],[24,42,24,43],[27,39,27,41],[21,37,21,38],[21,42,21,43],[22,42,22,43],[22,37,22,38],[21,39,21,40],[22,39,22,40],[26,39,26,41],[24,37,24,38],[24,39,24,41],[25,39,25,41],[38,39,38,41],[34,39,34,41],[35,39,35,41],[33,39,33,41],[28,39,28,41],[31,39,31,41],[29,39,29,41],[30,39,30,41],[32,39,32,41],[35,0,35,1],[38,0,38,1],[39,5,39,12],[40,5,40,12],[42,5,42,12],[35,6,35,8],[37,5,37,12],[38,10,38,12],[43,5,44,12],[45,6,45,9],[45,11,45,12],[0,0,0,34],[30,5,30,12],[31,5,31,12],[29,5,29,12],[24,5,24,12],[26,5,26,12],[27,5,27,12],[28,5,28,12],[25,5,25,12],[20,5,20,12],[21,5,21,12],[22,5,22,12],[4,0,5,1],[33,5,33,12],[34,5,34,12],[32,5,32,12],[2,0,2,1],[3,0,3,1],[2,5,2,12],[8,0,8,1],[9,0,9,1],[3,11,4,12],[23,5,23,12],[6,0,6,1],[18,5,18,12],[19,5,19,12],[10,6,10,8],[17,5,17,12],[10,11,10,12]]}
[null,null,null,null,null,null,null,null,null,null,null,null,null,null,null,null,null,null,null,null,null,null,null,null,null,null,null,null,null,null,null,null,null,null,null,null,null,null,null,null,null,null,null,null,null,null,null,null,null,null,null,null,null,null,null,null,null,null,null,null,null,null,null,null,null,null,null,null,null,null,null,null,null,null,null,null,null,null,null,null,null,null,null,null,null,null,null,null,null,null,null,null,null,null,null,null,null,null,null,null,null,null,null,null,null,null,null,null,null,null,null,null,null,null,null,null,null,null,null,null,null,null,null,null,null,null,null,null,null,null,null,null,null,null,null,null,null,null,null,null,null,null,null,null,null,null,null,null,null,null,null,null,null,null,null,null,null,null,null,null,null,null,null,null,null,null,null,null,null,null,null,null,null,null,null,null,null,null,null,null,null,null,null,null,null,null,null,null,null,null,null,null,null,null,null,null,null,null,null,null,null,null,null,null,null,null,null,null,null,null,null,null,null,null,null,null,null,null,null,null,null,null,null,null,null,null,null,null,null,null,null,null,null,null,null,null,null,null,null,null,null,null,null,null,null,null,null,null,null,null,null,null,null,null,null,null,null,null,null,null,null,null,null,null,null,null,null,null,null,null,null,null,null,null,null,null,null,null,null,null,null,null,null,null,null,null,null,null,null,null,null,null,null,null,null,null,null,null,null,null,null,null,null,null,null,null,null,null,null,null,null,null,null,null,null,null,null,null,null,null,null,null,null,null,null,null,null,null,null,null,null,null,null,null,null,null,null,null,null,null,null,null,null,null,null,null,null,null,null,null,null,null,null,null,null,null,null,null,null,null,null,null,null,null,null,null,null,null,null,null,null,null,null,null,null,null,null,null,null,null,null,null,null,null,null,null,null,null,null,null,null,null,null,null,null,null,null,null,null,null,null,null,null,null,null,null,null,null,null,null,null,null,null,null,null,null,null,null,null,null,null,null,null,null,null,null,null,null,null,null,null,null,null,null,null,null,null,null,null,null,null,null,null,null,null,null,null,null,null,null,null,null,null,null,null,null,null,null,null,null,null,null,null,null,null,null,null,null,null,null,null,null,null,null,null,null,null,null,null,null,null,null,null,null,null,null,null,null,null,null,null,null,null,null,null,null,null,null,null,null,null,null,null,null,null,null,null,null,null,null,null,null,null,null,null,null,null,null,null,null,null,null,null,null,null,null,null,null,null,null,null,null,null,null,null,null,null,null,null,null,null,null,null,null,null,null,null,null,null,null,null,null,null,null,null,null,null,null,null,null,null,null,null,null,null,null,null,null,null,null,null,null,null,null,null,null,null,null,null,null,null,null,null,null,null,null,null,null,null,null,null,null,null,null,null,null,null,null,null,null,null,null,null,null,null,null,null,null,null,null,null,null,null,null,null,null,null,null,null,null,null,null,null,null,null,null,null,null,null,null,null,null,null,null,null,null,null,null,null,null,null,null,null,null,null,null,null,null,null,null,null,null,null,null,null,null,null,null,null,null,null,null,null,null,null,null,null,null,null,null,null,null,null,null,null,null,null,null,null,null,null,null,null,null,null,null,null,null,null,null,null,null,null,null,null,null,null,null,null,null,null,null,null,null,null,null,null,null,null,null,null,null,null,null,null,null,null,null,null,null,null,null,null,null,null,null,null,null,null,null,null,null,null,null,null,null,null,null,null,null,null,null,null,null,null,null,null,null,null,null,null,null,null,null,null,null,null,null,null,null,null,null,null,null,null,null,null,null,null,null,null,null,null,null,null,null,null,null,null,null,null,null,null,null,null,null,null,null,null,null,null,null,null,null,null,null,null,null,null,null,null,null,null,null,null,null,null,null,null,null,null,null,null,null,null,null,null,null,null,null,null,null,null,null,null,null,null,null,null,null,null,null,null,null,null,null,null,null,null,null,null,null,null,null,null,null,null,null,null,null,null,null,null,null,null,null,null,null,null,null,null,null,null,null,null,null,null,null,null,null,null,null,null,null,null,null,null,null,null,null,null,null,null,null,null,null,null,null,null,null,null,null,null,null,null,null,null,null,null,null,null,"Construction Proposal Templatec1001",null,null,null,null,null,null,null,null,null,null,null,null,null,null,null,null,null,null,null,null,null,null,null,null,null,null,null,null,null,null,null,null,"Construction Proposal Templatec1001 - 1, New York[6], New York, 8537673, 8175133, 7000443466791304800?+4.43%, 301.5 sq mi, 780.9 km2, 28,317/sq mi, 10,933/km2, 40°39′49″N 73°56′19″W? / ?40.6635°N 73.9387°W? / 40.6635; -73.9387? (1 New York City)",null,null,null,null,null,null,null,null,null,null,null,null,null,null,null,null,null,null,null,null,null,null,null,null,null,null,null,"Construction Proposal Templatec1001 - 1, New York[6], New York, 8537673, 8175133, 7000443466791304800?+4.43%, 301.5 sq mi, 780.9 km2, 28,317/sq mi, 10,933/km2, 40°39′49″N 73°56′19″W? / ?40.6635°N 73.9387°W? / 40.6635; -73.9387? (1 New York City)",null,null,null,null,null,null,null,"Construction Proposal Templatec1001",null,null,null,null,null,null,null,"Construction Proposal Templatec1001 - 1, New York[6], New York, 8537673, 8175133, 7000443466791304800?+4.43%, 301.5 sq mi, 780.9 km2, 28,317/sq mi, 10,933/km2, 40°39′49″N 73°56′19″W? / ?40.6635°N 73.9387°W? / 40.6635; -73.9387? (1 New York City)",null,null,"Construction Proposal Templatec1001 - 1, New York[6], New York, 8537673, 8175133, 7000443466791304800?+4.43%, 301.5 sq mi, 780.9 km2, 28,317/sq mi, 10,933/km2, 40°39′49″N 73°56′19″W? / ?40.6635°N 73.9387°W? / 40.6635; -73.9387? (1 New York City)",null,null,null,null,null,null,null,null,"Construction Proposal Templatec1001",null,null,null,null,"Construction Proposal Templatec1001 - 1, New York[6], New York, 8537673, 8175133, 7000443466791304800?+4.43%, 301.5 sq mi, 780.9 km2, 28,317/sq mi, 10,933/km2, 40°39′49″N 73°56′19″W? / ?40.6635°N 73.9387°W? / 40.6635; -73.9387? (1 New York City)",null,"Construction Proposal Templatec1001 - 1, New York[6], New York, 8537673, 8175133, 7000443466791304800?+4.43%, 301.5 sq mi, 780.9 km2, 28,317/sq mi, 10,933/km2, 40°39′49″N 73°56′19″W? / ?40.6635°N 73.9387°W? / 40.6635; -73.9387? (1 New York City)"]
[]
["Current Database",null,null,null,null,"Consulting Business Name"]
["c1013",null,null,null,null,"Consultant Business Address",null,null,null,null,null,"INVOICE"]
["Invoice Status",null,null,null,null,"Consultant Business City, State ZIP"]
[null,null,null,null,null,"Consultant Business Contact",null,null,null,null,null,"Date:","2018-11-04"]
["Pending",null,null,null,null,"Consultant License. No. (Your text here)",null,null,null,null,null,"Invoice #:"]
[]
["Cust. ID"]
[]
[null,null,"TaxSystem",null,null,"TO",null,null,null,null,"Phone #"]
[null,null,0,null,null,null,null,null,null,null,"Job Location"]
[null,null,0]
[null,null,0]
[null,null,0.08]
[null,null,0.06]
[]
["Item#","Line#","Taxable","cost",null,"Consulting project / job description"]
[null,1,0,0]
[null,2,0,0]
[null,3,0,0]
[null,4,0,0,null,null,null,null,null,null,null,null,null,null,null,null,null,null,null,null,null,null,null,null,null,null,null,null,null,null,null,null,null,null,null,null,null,"P.O. #",null,"Sales Rep. Name",null,"Ship Date","Ship Via",null,"Terms","Due Date"]
[null,5,0,0,null,null,null,null,null,null,null,null,null,null,null,null,null,null,null,null,null,null,null,null,null,null,null,null,null,null,null,null,null,null,null,null,null,null,null,"Sales1",null,"2018-11-04","UPS",null,"Net 60"]
[null,6,0,0]
[null,7,0,0,null,null,null,null,null,null,null,null,null,null,null,null,null,null,null,null,null,null,null,null,null,null,null,null,null,null,null,null,null,null,null,null,null,"Product ID",null,"Description",null,null,"Quantity",null,"Unit Price","Line Total"]
[null,8,0,0,null,null,null,null,null,null,null,null,null,null,null,null,null,null,null,null,null,null,null,null,null,null,null,null,null,null,null,null,null,null,null,null,null,null,null,null,null,null,0,null,0,{"$f":"ROUND(oknQuantity_1*oknPrice_1,2)","v":0}]
[null,9,0,0,null,null,null,null,null,null,null,null,null,null,null,null,null,null,null,null,null,null,null,null,null,null,null,null,null,null,null,null,null,null,null,null,null,null,null,null,null,null,0,null,0,{"$f":"ROUND(oknQuantity_2*oknPrice_2,2)","v":0}]
[null,10,0,0,null,null,null,null,null,null,null,null,null,null,null,null,null,null,null,null,null,null,null,null,null,null,null,null,null,null,null,null,null,null,null,null,null,null,null,null,null,null,0,null,0,{"$f":"ROUND(oknQuantity_3*oknPrice_3,2)","v":0}]
[null,11,0,0,null,null,null,null,null,null,null,null,null,null,null,null,null,null,null,null,null,null,null,null,null,null,null,null,null,null,null,null,null,null,null,null,null,null,null,null,null,null,0,null,0,{"$f":"ROUND(oknQuantity_4*oknPrice_4,2)","v":0}]
[null,12,0,0,null,null,null,null,null,null,null,null,null,null,null,null,null,null,null,null,null,null,null,null,null,null,null,null,null,null,null,null,null,null,null,null,null,null,null,null,null,null,0,null,0,{"$f":"ROUND(oknQuantity_5*oknPrice_5,2)","v":0}]
[null,13,0,0,null,null,null,null,null,null,null,null,null,null,null,null,null,null,null,null,null,null,null,null,null,null,null,null,null,null,null,null,null,null,null,null,null,null,null,null,null,null,0,null,0,{"$f":"ROUND(oknQuantity_6*oknPrice_6,2)","v":0}]
[null,14,0,0,null,null,null,null,null,null,null,null,null,null,null,null,null,null,null,null,null,null,null,null,null,null,null,null,null,null,null,null,null,null,null,null,null,null,null,null,null,null,0,null,0,{"$f":"ROUND(oknQuantity_7*oknPrice_7,2)","v":0}]
[null,15,0,0,null,null,null,null,null,null,null,null,null,null,null,null,null,null,null,null,null,null,null,null,null,null,null,null,null,null,null,null,null,null,null,null,null,null,null,null,null,null,0,null,0,{"$f":"ROUND(oknQuantity_8*oknPrice_8,2)","v":0}]
[null,16,0,0,null,null,null,null,null,null,null,null,null,null,null,null,null,null,null,null,null,null,null,null,null,null,null,null,null,null,null,null,null,null,null,null,null,null,null,null,null,null,0,null,0,{"$f":"ROUND(oknQuantity_9*oknPrice_9,2)","v":0}]
[null,null,null,null,null,"All of the above work to be completed in a substantial and workmanlike manner according to standard practices for the sum of",null,null,null,null,null,null,null,null,null,null,null,null,null,null,null,null,null,null,null,null,null,null,null,null,null,0,null,0,0,null,null,null,null,null,null,null,0,null,0,{"$f":"ROUND(oknQuantity_10*oknPrice_10,2)","v":0}]
[null,null,"linetotal taxable",null,null,"Dollars  (",12345.67,null,null,")",null,null,null,null,null,null,null,null,null,null,null,null,null,null,null,null,null,null,null,null,null,0,null,0,0,null,null,null,null,null,null,null,0,null,0,{"$f":"ROUND(oknQuantity_11*oknPrice_11,2)","v":0}]
[null,null,"total",{"$f":"oknSubTotal","v":12345.67},null,"Total Amount in English Words"]
[null,null,null,null,null,{"$f":"SpellNumber(oknSubTotal)","v":"Twelve Thousand Three Hundred Forty Five Dollars and Sixty Seven Cents"}]
[null,null,null,null,null,"Progress payments to be made:",null,null,null,null,null,null,null,null,null,null,null,null,null,null,null,null,null,null,null,null,null,null,null,null,null,0,null,0,0,null,null,null,null,null,null,null,0,null,0,{"$f":"ROUND(oknQuantity_12*oknPrice_12,2)","v":0}]
[null,null,null,null,null,null,null,null,null,null,null,null,null,null,null,null,null,null,null,null,null,null,null,null,null,null,null,null,null,null,null,0,null,0,0]
[]
[]
[null,null,null,null,null,"ACCEPTANCE"]
[null,null,null,null,null,"You are hereby authorized to furnish all materials and labor required to complete the work mentioned in the above form, for which you agree to pay the amount mentioned in said"]
[]
[null,null,null,null,null,"Accpeted",null,null,null,null,"Date"]
[]
[]
[]
[]
[]
[]
[]
[]
[]
[]
[]
[]
[]
[]
[]
[]
[]
[]
[]
[]
[]
[]
[]
[]
[]
[]
[]
[]
[]
[]
[]
[]
[]
[]
[]
[]
[]
[]
[]
[]
[]
[]
[]
[]
[]
[]
[]
[]
[]
[]
[]
[]
[]
[]
[]
[]
[]
[]
[]
[]
[]
[]
[]
[]
[]
[]
[]
[]
[]
[]
[]
[]
[]
[]
[]
[]
[]
[]
[]
[]
[]
[]
[]
[]
[]
[]
[]
[]
[]
[]
[]
[]
[]
[]
[]
[]
[]
[]
[]
[]
[]
[]
[]
[]
[]
[]
[]
[]
[]
[]
[]
[]
[]
[]
[]
[]
[]
[]
[]
[]
[]
[]
[]
[]
[]
[]
[]
[]
[]
[]
[]
[]
[]
[]
[]
[]
[]
[]
[]
[]
[]
[]
[]
[]
[]
[]
[]
[]
[]
[]
[]
[]
[]
[]
[]
[]
[]
[]
[]
[]
[]
[]
[]
[]
[]
[]
[]
[]
[]
[]
[]
[]
[]
[]
[]
[]
[]
[]
[]
[]
[]
[]
[]
[]
[]
[]
[]
[]
[]
[]
[]
[]
[]
[]
[]
[]
[]
[]
[]
[]
[]
[]
[]
[]
[]
[]
[]
[]
[]
[]
[]
[]
[]
[]
[]
[]
[]
[]
[]
[]
[]
[]
[]
[]
[]
[]
[]
[]
[]
[]
[]
[]
[]
[]
[]
[]
[]
[]
[]
[]
[]
[]
[]
[]
[]
[]
[]
[]
[]
[]
[]
[]
[]
[]
[]
[]
[]
[]
[]
[]
[]
[]
[]
[]
[]
[]
[]
[]
[]
[]
[]
[]
[]
[]
[]
[]
[]
[]
[]
[]
[]
[]
[]
[]
[]
[]
[]
[]
[]
[]
[]
[]
[]
[]
[]
[]
[]
[]
[]
[]
[]
[]
[]
[]
[]
[]
[]
[]
[]
[]
[]
[]
[]
[]
[]
[]
[]
[]
[]
[]
[]
[]
[]
[]
[]
[]
[]
[]
[]
[]
[]
[]
[]
[]
[]
[]
[]
[]
[]
[]
[]
[]
[]
[]
[]
[]
[]
[]
[]
[]
[]
[]
[]
[]
[]
[]
[]
[]
[]
[]
[]
[]
[]
[]
[]
[]
[]
[]
[]
[]
[]
[]
[]
[]
[]
[]
[]
[]
[]
[]
[]
[]
[]
[]
[]
[]
[]
[]
[]
[]
[]
[]
[]
[]
[]
[]
[]
[]
[]
[]
[]
[]
[]
[]
[]
[]
[]
[]
[]
[]
[]
[]
[]
[]
[]
[]
[]
[]
[]
[]
[]
[]
[]
[]
[]
[]
[]
[]
[]
[]
[]
[]
[]
[]
[]
[]
[]
[]
[]
[]
[]
[]
[]
[]
[]
[]
[]
[]
[]
[]
[]
[]
[]
[]
[]
[]
[]
[]
[]
[]
[]
[]
[]
[]
[]
[]
[]
[]
[]
[]
[]
[]
[]
[]
[]
[]
[]
[]
[]
[]
[]
[]
[]
[]
[]
[]
[]
[]
[]
[]
[]
[]
[]
[]
[]
[]
[]
[]
[]
[]
[]
[]
[]
[]
[]
[]
[]
[]
[]
[]
[]
[]
[]
[]
[]
[]
[]
[]
[]
[]
[]
[]
[]
[]
[]
[]
[]
[]
[]
[]
[]
[]
[]
[]
[]
[]
[]
[]
[]
[]
[]
[]
[]
[]
[]
[]
[]
[]
[]
[]
[]
[]
[]
[]
[]
[]
[]
[]
[]
[]
[]
[]
[]
[]
[]
[]
[]
[]
[]
[]
[]
[]
[]
[]
[]
[]
[]
[]
[]
[]
[]
[]
[]
[]
[]
[]
[]
[]
[]
[]
[]
[]
[]
[]
[]
[]
[]
[]
[]
[]
[]
[]
[]
[]
[]
[]
[]
[]
[]
[]
[]
[]
[]
[]
[]
[]
[]
[]
[]
[]
[]
[]
[]
[]
[]
[]
[]
[]
[]
[]
[]
[]
[]
[]
[]
[]
[]
[]
[]
[]
[]
[]
[]
[]
[]
[]
[]
[]
[]
[]
[]
[]
[]
[]
[]
[]
[]
[]
[]
[]
[]
[]
[]
[]
[]
[]
[]
[]
[]
[]
[]
[]
[]
[]
[]
[]
[]
[]
[]
[]
[]
[]
[]
[]
[]
[]
[]
[]
[]
[]
[]
[]
[]
[]
[]
[]
[]
[]
[]
[]
[]
[]
[]
[]
[]
[]
[]
[]
[]
[]
[]
[]
[]
[]
[]
[]
[]
[]
[]
[]
[]
[]
[]
[]
[]
[]
[]
[]
[]
[]
[]
[]
[]
[]
[]
[]
[]
[]
[]
[]
[]
[]
[]
[]
[]
[]
[]
[]
[]
[]
[]
[]
[]
[]
[]
[]
[]
[]
[]
[]
[]
[]
[]
[]
[]
[]
[]
[]
[]
[]
[]
[]
[]
[]
[]
[]
[]
[]
[]
[]
[]
[]
[]
[]
[]
[]
[]
[]
[]
[]
[]
[]
[]
[]
[]
[]
[]
[]
[]
[]
[]
[]
[]
[]
[]
[]
[]
[]
[]
[]
[]
[]
[]
[]
[]
[]
[]
[]
[]
[]
[]
[]
[]
[]
[]
[]
[]
[]
[]
[]
[]
[]
[]
[]
[]
[]
[]
[]
[]
[]
[]
[]
[]
[]
[]
[]
[]
[]
[]
[]
[]
[]
[]
[]
[]
[]
[]
[]
[]
[]
[]
[]
[]
[]
[]
[]
[]
[]
[]
[]
[]
[]
[]
[]
[]
[]
[]
[]
[]
["Construction Estimate Form"]
[]
[]
["Construction Estimate Form - 1, New York[6], New York, 8537673, 8175133, 7000443466791304800?+4.43%, 301.5 sq mi, 780.9 km2, 28,317/sq mi, 10,933/km2, 40°39′49″N 73°56′19″W? / ?40.6635°N 73.9387°W? / 40.6635; -73.9387? (1 New York City)"]
[]
[]
[]
["Construction Estimate Form - 1, New York[6], New York, 8537673, 8175133, 7000443466791304800?+4.43%, 301.5 sq mi, 780.9 km2, 28,317/sq mi, 10,933/km2, 40°39′49″N 73°56′19″W? / ?40.6635°N 73.9387°W? / 40.6635; -73.9387? (1 New York City)"]
[]
[]
[]
[]
[]
[]
[]
[]
[]
[]
[]
["Construction Estimate Form - 1, New York[6], New York, 8537673, 8175133, 7000443466791304800?+4.43%, 301.5 sq mi, 780.9 km2, 28,317/sq mi, 10,933/km2, 40°39′49″N 73°56′19″W? / ?40.6635°N 73.9387°W? / 40.6635; -73.9387? (1 New York City)"]
[]
["Construction Estimate Form - 1, New York[6], New York, 8537673, 8175133, 7000443466791304800?+4.43%, 301.5 sq mi, 780.9 km2, 28,317/sq mi, 10,933/km2, 40°39′49″N 73°56′19″W? / ?40.6635°N 73.9387°W? / 40.6635; -73.9387? (1 New York City)"]
[]
[]
[]
[]
[]
[]
[]
[]
["Construction Estimate Form - 1, New York[6], New York, 8537673, 8175133, 7000443466791304800?+4.43%, 301.5 sq mi, 780.9 km2, 28,317/sq mi, 10,933/km2, 40°39′49″N 73°56′19″W? / ?40.6635°N 73.9387°W? / 40.6635; -73.9387? (1 New York City)"]
[]
[]
[]
[]
[]
[]
[]
[]
[]
[]
[]
[]
[]
[]
[]
[]
["Construction Estimate Form - 1, New York[6], New York, 8537673, 8175133, 7000443466791304800?+4.43%, 301.5 sq mi, 780.9 km2, 28,317/sq mi, 10,933/km2, 40°39′49″N 73°56′19″W? / ?40.6635°N 73.9387°W? / 40.6635; -73.9387? (1 New York City)"]
[]
[]
[]
[]
[]
[]
[]
[]
[]
[]
[]
["Construction Estimate Form"]

{"sheet":"Sales Report","index":1,"n_rows":12,"n_cols":17,"rows_kept":12,"cut":false,"hidden":false,"merged":[]}
[]
[]
[null,{"$f":"oknCompanyName","v":"Consulting Business Name"}]
[null,{"$f":"oknCompanyAddress","v":"Consultant Business Address"}]
[null,{"$f":"oknCompanyCityStateZip","v":"Consultant Business City, State ZIP"}]
[null,{"$f":"oknCompanyContact","v":"Consultant Business Contact"}]
[]
[null,"Date:"]
[null,"From"]
[null,"To"]
[]
[null,"Month","Date","Cost","Invoice #","P.O. #","Sales Rep.","Subtotal","Shipping",{"$f":"oknTax1Name","v":{"$error":"#REF!"}},{"$f":"oknTax2Name","v":{"$error":"#REF!"}},"Total","Paid","Balance Due","Due Date","Payment Term","Customer"]

{"sheet":"Customer Report","index":2,"n_rows":11,"n_cols":17,"rows_kept":11,"cut":false,"hidden":false,"merged":[]}
[]
[]
[null,{"$f":"oknCompanyName","v":"Consulting Business Name"}]
[null,{"$f":"oknCompanyAddress","v":"Consultant Business Address"}]
[null,{"$f":"oknCompanyCityStateZip","v":"Consultant Business City, State ZIP"}]
[null,{"$f":"oknCompanyContact","v":"Consultant Business Contact"}]
[null,"Date:"]
[null,"From"]
[null,"To"]
[]
[null,"Customer ID","Date","Name","Invoice #","Cost",{"$f":"oknTax1Name","v":{"$error":"#REF!"}},{"$f":"oknTax2Name","v":{"$error":"#REF!"}},"Shipping Cost","Paid","Balance Due","Subtotal","Total","Due Date","P.O. #","Sales Rep.","Payment Term"]

{"sheet":"Product Report","index":3,"n_rows":11,"n_cols":9,"rows_kept":11,"cut":false,"hidden":false,"merged":[]}
[]
[]
[null,{"$f":"oknCompanyName","v":"Consulting Business Name"}]
[null,{"$f":"oknCompanyAddress","v":"Consultant Business Address"}]
[null,{"$f":"oknCompanyCityStateZip","v":"Consultant Business City, State ZIP"}]
[null,{"$f":"oknCompanyContact","v":"Consultant Business Contact"}]
[null,"Date:"]
[null,"From"]
[null,"To"]
[]
[null,"Product ID","Date","Invoice #","Description","Quantity","Price","Line Total","Unit Cost"]

{"sheet":"Customer Statement","index":4,"n_rows":20,"n_cols":8,"rows_kept":20,"cut":false,"hidden":false,"merged":[[8,5,8,6],[9,5,9,6],[11,5,11,6]]}
[]
[]
[null,{"$f":"oknCompanyName","v":"Consulting Business Name"}]
[null,{"$f":"oknCompanyAddress","v":"Consultant Business Address"}]
[null,{"$f":"oknCompanyCityStateZip","v":"Consultant Business City, State ZIP"}]
[null,{"$f":"oknCompanyContact","v":"Consultant Business Contact"}]
[]
[null,"Bill To:"]
[null,"ID:",null,null,null,"Balance forward",null,0]
[null,"Name:",null,null,null,"Current balance",null,0]
[null,"Address:"]
[null,"City,ST ZIP:",null,null,null,"Invoice total",null,0]
[null,"Country:",null,null,null,"Payment total",null,0]
[null,"Phone:"]
[]
[null,"Statement Period:"]
[null,"From:"]
[null,"To:"]
[]
[null,"Date","Description","Document#","Due Date","Status","Amount","Balance"]

{"sheet":"Sales Rep. Report","index":5,"n_rows":13,"n_cols":14,"rows_kept":13,"cut":false,"hidden":false,"merged":[]}
[]
[]
[null,{"$f":"oknCompanyName","v":"Consulting Business Name"}]
[null,{"$f":"oknCompanyAddress","v":"Consultant Business Address"}]
[null,{"$f":"oknCompanyCityStateZip","v":"Consultant Business City, State ZIP"}]
[null,{"$f":"oknCompanyContact","v":"Consultant Business Contact"}]
[]
[null,"Date:"]
[null,"From"]
[null,"To"]
[]
[]
[null,"Sales Rep.","Date","P.O. #","Invoice #","Cost",{"$f":"oknTax1Name","v":{"$error":"#REF!"}},{"$f":"oknTax2Name","v":{"$error":"#REF!"}},"Shipping","Total","Paid","Subtotal","Balance Due","Due Date"]

{"sheet":"Payment Report","index":6,"n_rows":13,"n_cols":10,"rows_kept":13,"cut":false,"hidden":false,"merged":[]}
[]
[]
[null,{"$f":"oknCompanyName","v":"Consulting Business Name"}]
[null,{"$f":"oknCompanyAddress","v":"Consultant Business Address"}]
[null,{"$f":"oknCompanyCityStateZip","v":"Consultant Business City, State ZIP"}]
[null,{"$f":"oknCompanyContact","v":"Consultant Business Contact"}]
[]
[null,"Date:"]
[null,"From"]
[null,"To"]
[]
[]
[null,"Type","Date","Invoice #","Check / Money Order #","Notes","Amount","Total Applied","Customer ID","Customer Name"]

{"sheet":"©","index":7,"n_rows":17,"n_cols":2,"rows_kept":17,"cut":false,"hidden":false,"merged":[]}
[null,"One Column Consulting Invoice Sample - c1013"]
[]
[null,"By InvoicingTemplate.com"]
[null,"Template URL"]
[]
[null,"© 2017 InvoicingTemplate.com / Uniform Software LTD"]
[]
[null,"This spreadsheet, including all worksheets and associated content is considered a copyrighted work under the United States and other copyright laws."]
[]
[null,"Do not submit copies or modifications of this template to any website or online template gallery."]
[]
[null,"Please review the following Terms of Use to learn how you may or may not use this template. Thank you."]
[]
[null,"See our Terms of Use / Copyright Notic"]
[null,"http://www.invoicingtemplate.com/about.html"]
[]
[null,"Do not delete this worksheet. If necessary, you may hide it by right-clicking on the tab and selecting Hide."]

{"sheet":"Office-Kit.com.System","index":8,"n_rows":39,"n_cols":5,"rows_kept":39,"cut":false,"hidden":true,"merged":[]}
[]
[]
[]
[]
["SoftID","OkInv 1.0"]
["DbPath","c1013.mdb"]
["HowToCloseBook",2,null,"Valid Value:","0=Auto discard changes,  1=AutoSave,   2=DefaultOperation,prompt "]
["SavingInvoicePromptForPayment",1]
["SavingInvoiceClearWorksheet",0]
["ExtractingReportRemoveRowCol",1]
["ExtractingInvoiceRemoveRowCol",1]
["ExtractingProtectWorksheet",1]
["ExtractingProtectPwd"]
["ExtractingEmailInvoice",0]
["ExtractingWhereToPlaceNewInvoice","$C$3"]
["ExtractingRowsToRemoveOnReportWorksheet",1]
["ExtractingInvoiceCopyPageSetup",1]
["InvoiceBodyMinNumber",1]
["InvoiceBodyMaxNumber",12]
["Allow incomplete line",1]
["Upgraded to 1028",1]
["Allow zero line total",1]
[null,"3FI6I6I5DI1D"]
[]
[]
[]
[]
[]
[]
[null,1]
[]
[]
[null,2]
[null,1]
[null,1]
[null,1]
[]
[null,1]
[null,1]